[Event "GrandPrix_29.05"]
[Site "Chess.com"]
[Date "2020.05.29"]
[Round "3"]
[White "Koalaskakistis"]
[Black "mishanick"]
[Result "0-1"]
[WhiteElo "2097"]
[BlackElo "2592"]
[TimeControl "600+2"]
[EndTime "10:28:22 PDT"]
[Termination "mishanick won by resignation"]

1. f4 {[%clk 0:09:46.7]} 1... Nf6 {[%clk 0:09:57.9]} 2. Nf3 {[%clk 0:09:44.9]}
2... g6 {[%clk 0:09:58.5]} 3. g3 {[%clk 0:09:43.5]} 3... Bg7 {[%clk 0:09:59.6]}
4. Bg2 {[%clk 0:09:45]} 4... O-O {[%clk 0:10:00.6]} 5. O-O {[%clk 0:09:45.4]}
5... d5 {[%clk 0:09:50.7]} 6. d3 {[%clk 0:09:43.9]} 6... Nc6 {[%clk 0:09:48.3]}
7. c3 {[%clk 0:09:09.4]} 7... Bg4 {[%clk 0:09:38.7]} 8. Nbd2 {[%clk 0:08:59.4]}
8... Qd7 {[%clk 0:09:26.5]} 9. e4 {[%clk 0:08:00.9]} 9... dxe4 {[%clk
0:09:04.3]} 10. dxe4 {[%clk 0:08:02.8]} 10... e5 {[%clk 0:08:12.2]} 11. fxe5
{[%clk 0:06:58.6]} 11... Nh5 {[%clk 0:08:10]} 12. Qb3 {[%clk 0:06:47.7]} 12...
Nxe5 {[%clk 0:07:51.9]} 13. Nxe5 {[%clk 0:06:12.2]} 13... Bxe5 {[%clk
0:07:53.8]} 14. Qxb7 {[%clk 0:06:13.6]} 14... Qe7 {[%clk 0:05:47.5]} 15. Nc4
{[%clk 0:05:36.5]} 15... Qc5+ {[%clk 0:04:24]} 16. Ne3 {[%clk 0:05:35.7]} 16...
Be6 {[%clk 0:04:14.5]} 17. Qb4 {[%clk 0:04:47.2]} 17... Qxb4 {[%clk 0:04:02.5]}
18. cxb4 {[%clk 0:04:49.1]} 18... Rfb8 {[%clk 0:03:20]} 19. Nd5 {[%clk
0:04:45.4]} 19... Kg7 {[%clk 0:02:46.4]} 20. Bf4 {[%clk 0:04:10.1]} 20... Nxf4
{[%clk 0:02:28.3]} 21. gxf4 {[%clk 0:04:06.7]} 21... Bxd5 {[%clk 0:01:52]} 22.
exd5 {[%clk 0:03:37.2]} 22... Bd6 {[%clk 0:01:40.9]} 23. f5 {[%clk 0:02:31]}
23... Rxb4 {[%clk 0:01:40.5]} 24. f6+ {[%clk 0:02:31.7]} 24... Kh6 {[%clk
0:01:36.7]} 25. b3 {[%clk 0:02:26.1]} 25... Kg5 {[%clk 0:01:34]} 26. Rf3 {[%clk
0:02:19.5]} 26... Re8 {[%clk 0:01:31]} 27. Bf1 {[%clk 0:01:20.9]} 27... Rf4
{[%clk 0:01:09.4]} 28. Rxf4 {[%clk 0:01:15.8]} 28... Bxf4 {[%clk 0:01:10.4]} 29.
Bc4 {[%clk 0:01:07]} 29... Kxf6 {[%clk 0:00:58.8]} 30. Rf1 {[%clk 0:01:04.9]}
30... Re4 {[%clk 0:00:46.8]} 31. Kg2 {[%clk 0:00:39]} 31... Ke5 {[%clk 0:00:35]}
32. d6 {[%clk 0:00:28.3]} 32... cxd6 {[%clk 0:00:27.3]} 33. Bxf7 {[%clk
0:00:29.2]} 33... Re2+ {[%clk 0:00:18.4]} 34. Kf3 {[%clk 0:00:28.5]} 34... Rxh2
{[%clk 0:00:13.6]} 35. Re1+ {[%clk 0:00:28.7]} 35... Kf6 {[%clk 0:00:14.8]} 36.
Kxf4 {[%clk 0:00:05.3]} 36... Kxf7 {[%clk 0:00:15.6]} 37. Rc1 {[%clk 0:00:06.7]}
37... Ke6 {[%clk 0:00:15.7]} 38. Rc7 {[%clk 0:00:06.1]} 38... a5 {[%clk
0:00:16.3]} 39. Ra7 {[%clk 0:00:03.7]} 39... Rxa2 {[%clk 0:00:16.8]} 40. Rxh7
{[%clk 0:00:04.9]} 40... Ra3 {[%clk 0:00:17.7]} 41. Ra7 {[%clk 0:00:05.7]} 41...
Rxb3 {[%clk 0:00:08.7]} 42. Rxa5 {[%clk 0:00:06.9]} 42... Rb1 {[%clk 0:00:10.3]}
43. Kg5 {[%clk 0:00:08]} 43... Rg1+ {[%clk 0:00:11.2]} 44. Kf4 {[%clk
0:00:08.6]} 44... g5+ {[%clk 0:00:12.6]} 45. Ke4 {[%clk 0:00:08.9]} 45... Rg4+
{[%clk 0:00:13]} 46. Kf3 {[%clk 0:00:09.6]} 46... Rf4+ {[%clk 0:00:14.2]} 47.
Ke3 {[%clk 0:00:10]} 47... Rf5 {[%clk 0:00:15.2]} 48. Ra8 {[%clk 0:00:11.3]}
48... d5 {[%clk 0:00:16.1]} 49. Re8+ {[%clk 0:00:10.4]} 49... Kf6 {[%clk
0:00:16.8]} 50. Kd4 {[%clk 0:00:10.3]} 50... Kg6 {[%clk 0:00:17.6]} 51. Rh8
{[%clk 0:00:07.8]} 51... g4 {[%clk 0:00:18.3]} 52. Ke3 {[%clk 0:00:05.6]} 52...
Kg5 {[%clk 0:00:19.3]} 53. Rh7 {[%clk 0:00:06]} 53... g3 {[%clk 0:00:19.6]} 54.
Rg7+ {[%clk 0:00:05.9]} 54... Kh4 {[%clk 0:00:20.4]} 55. Ke2 {[%clk 0:00:07.3]}
55... Kh3 {[%clk 0:00:21.4]} 0-1

[Event "GrandPrix_29.05"]
[Site "Chess.com"]
[Date "2020.05.29"]
[Round "3"]
[White "am00ss00"]
[Black "ninullia"]
[Result "0-1"]
[WhiteElo "2104"]
[BlackElo "2363"]
[TimeControl "600+2"]
[EndTime "10:28:28 PDT"]
[Termination "ninullia won by resignation"]

1. d4 {[%clk 0:07:13.7]} 1... d5 {[%clk 0:09:07.5]} 2. Nf3 {[%clk 0:07:11.8]}
2... Nf6 {[%clk 0:08:55.1]} 3. e3 {[%clk 0:07:11]} 3... c5 {[%clk 0:08:55.5]} 4.
b3 {[%clk 0:07:09]} 4... Nc6 {[%clk 0:08:54.3]} 5. Bb2 {[%clk 0:07:09.6]} 5...
Bg4 {[%clk 0:08:48.7]} 6. Nbd2 {[%clk 0:07:09.3]} 6... cxd4 {[%clk 0:08:49.2]}
7. exd4 {[%clk 0:07:08.6]} 7... e6 {[%clk 0:08:50.6]} 8. h3 {[%clk 0:07:04.5]}
8... Bh5 {[%clk 0:08:51.1]} 9. Be2 {[%clk 0:07:02.7]} 9... Bd6 {[%clk
0:08:51.3]} 10. O-O {[%clk 0:07:02.1]} 10... O-O {[%clk 0:08:52.3]} 11. Ne5
{[%clk 0:06:58.6]} 11... Bxe2 {[%clk 0:08:48.5]} 12. Qxe2 {[%clk 0:07:00.5]}
12... Rc8 {[%clk 0:08:49.4]} 13. Rac1 {[%clk 0:06:50.3]} 13... Bxe5 {[%clk
0:08:24.1]} 14. dxe5 {[%clk 0:06:50.2]} 14... Nd7 {[%clk 0:08:25.7]} 15. c4
{[%clk 0:06:44.5]} 15... Qe7 {[%clk 0:07:46.9]} 16. Rfd1 {[%clk 0:06:35.8]}
16... Rfd8 {[%clk 0:07:38]} 17. cxd5 {[%clk 0:06:30.2]} 17... exd5 {[%clk
0:07:36.8]} 18. Nf3 {[%clk 0:06:30]} 18... Nf8 {[%clk 0:07:34.1]} 19. Qb5 {[%clk
0:06:20.2]} 19... a6 {[%clk 0:07:27.1]} 20. Qa4 {[%clk 0:06:06.1]} 20... Ng6
{[%clk 0:07:23.6]} 21. Re1 {[%clk 0:05:44.3]} 21... Qb4 {[%clk 0:06:41.2]} 22.
Ba3 {[%clk 0:04:06.2]} 22... Qxa4 {[%clk 0:06:31.5]} 23. bxa4 {[%clk 0:04:08.1]}
23... h6 {[%clk 0:05:52.9]} 24. Bd6 {[%clk 0:03:59.7]} 24... f6 {[%clk
0:05:24.4]} 25. Rcd1 {[%clk 0:03:25.2]} 25... fxe5 {[%clk 0:03:55.7]} 26. Bxe5
{[%clk 0:03:21.9]} 26... Ncxe5 {[%clk 0:03:50.2]} 27. Nxe5 {[%clk 0:03:22.4]}
27... Nxe5 {[%clk 0:03:51.3]} 28. Rxe5 {[%clk 0:03:23.8]} 28... d4 {[%clk
0:03:52.9]} 29. Re4 {[%clk 0:02:35.8]} 29... d3 {[%clk 0:03:49]} 30. Re3 {[%clk
0:02:03.6]} 30... d2 {[%clk 0:03:46.9]} 31. Kf1 {[%clk 0:02:01.9]} 31... Rc2
{[%clk 0:03:41.6]} 32. a3 {[%clk 0:02:01.5]} 32... Rd4 {[%clk 0:03:27.4]} 33.
Ke2 {[%clk 0:01:54.3]} 33... Kf7 {[%clk 0:03:19]} 34. Rb3 {[%clk 0:01:41.3]}
34... Rd7 {[%clk 0:03:09]} 35. a5 {[%clk 0:01:39.4]} 35... Ra2 {[%clk 0:02:59]}
36. f3 {[%clk 0:01:23.8]} 36... Ke7 {[%clk 0:02:46.4]} 37. Re3+ {[%clk
0:01:22.8]} 37... Kd8 {[%clk 0:02:37.8]} 38. Rc3 {[%clk 0:01:14]} 38... Rd5
{[%clk 0:02:29.7]} 39. Rb3 {[%clk 0:00:35.9]} 39... Kc7 {[%clk 0:02:28.8]} 40.
g3 {[%clk 0:00:31.3]} 40... Re5+ {[%clk 0:02:07.6]} 41. Kd3 {[%clk 0:00:24]}
41... Rxa5 {[%clk 0:02:08.2]} 42. Rc3+ {[%clk 0:00:19.6]} 42... Kb8 {[%clk
0:02:06.2]} 43. Ke2 {[%clk 0:00:19.6]} 43... Re5+ {[%clk 0:01:54.9]} 44. Kd3
{[%clk 0:00:15.1]} 44... Ka7 {[%clk 0:01:55.5]} 45. f4 {[%clk 0:00:15.6]} 45...
Ra5 {[%clk 0:01:49]} 46. Ke2 {[%clk 0:00:16.2]} 46... R5xa3 {[%clk 0:01:47.8]}
47. Rxa3 {[%clk 0:00:18.1]} 47... Rxa3 {[%clk 0:01:48.5]} 48. Rxd2 {[%clk
0:00:17.8]} 48... Rxg3 {[%clk 0:01:48.9]} 49. Rd7 {[%clk 0:00:18.7]} 49... a5
{[%clk 0:01:47.6]} 50. h4 {[%clk 0:00:17.9]} 50... Ka6 {[%clk 0:01:45.3]} 51.
Kf2 {[%clk 0:00:18]} 51... Rg4 {[%clk 0:01:42]} 52. Kf3 {[%clk 0:00:18.3]} 52...
h5 {[%clk 0:01:34.7]} 53. f5 {[%clk 0:00:16.9]} 53... a4 {[%clk 0:01:29.8]} 54.
Rd8 {[%clk 0:00:16.9]} 54... Rxh4 {[%clk 0:01:24.9]} 55. Rg8 {[%clk 0:00:14]}
55... Rg4 {[%clk 0:01:23.6]} 56. Rh8 {[%clk 0:00:12.1]} 56... b5 {[%clk
0:00:56.4]} 57. Rxh5 {[%clk 0:00:12.3]} 57... Rg1 {[%clk 0:00:57.9]} 58. Rh8
{[%clk 0:00:09]} 58... Ka5 {[%clk 0:00:58.9]} 59. Rg8 {[%clk 0:00:09.6]} 59...
Kb4 {[%clk 0:00:58.6]} 60. Kf2 {[%clk 0:00:09.2]} 60... Rg5 {[%clk 0:00:58.3]}
61. Ke3 {[%clk 0:00:08.3]} 61... a3 {[%clk 0:00:56.2]} 62. Kf4 {[%clk
0:00:07.7]} 62... Rg1 {[%clk 0:00:56.2]} 63. f6 {[%clk 0:00:05.5]} 63... Rf1+
{[%clk 0:00:55.5]} 64. Ke3 {[%clk 0:00:06.7]} 0-1

[Event "GrandPrix_29.05"]
[Site "Chess.com"]
[Date "2020.05.29"]
[Round "3"]
[White "VolodymyrMolyboha"]
[Black "haddinibilbaoo"]
[Result "1/2-1/2"]
[WhiteElo "2280"]
[BlackElo "2144"]
[TimeControl "600+2"]
[EndTime "10:28:29 PDT"]
[Termination "Game drawn by repetition"]

1. e4 {[%clk 0:10:01.8]} 1... c5 {[%clk 0:09:59]} 2. Nf3 {[%clk 0:10:02.1]} 2...
Nc6 {[%clk 0:09:59.3]} 3. Bb5 {[%clk 0:10:02.4]} 3... g6 {[%clk 0:10:00.1]} 4.
O-O {[%clk 0:10:03]} 4... Bg7 {[%clk 0:10:00.9]} 5. c3 {[%clk 0:10:01.9]} 5...
Nf6 {[%clk 0:09:49.8]} 6. Re1 {[%clk 0:09:59.8]} 6... O-O {[%clk 0:09:48.9]} 7.
d4 {[%clk 0:10:00.3]} 7... d5 {[%clk 0:09:50]} 8. e5 {[%clk 0:10:01.5]} 8... Ne4
{[%clk 0:09:48.4]} 9. Be3 {[%clk 0:10:01.9]} 9... cxd4 {[%clk 0:09:34.6]} 10.
cxd4 {[%clk 0:10:00.7]} 10... Bg4 {[%clk 0:09:11.5]} 11. h3 {[%clk 0:09:12.5]}
11... Bd7 {[%clk 0:09:09.3]} 12. Bxc6 {[%clk 0:08:58.6]} 12... Bxc6 {[%clk
0:09:10.2]} 13. Nfd2 {[%clk 0:08:59.4]} 13... Nxd2 {[%clk 0:08:37.8]} 14. Qxd2
{[%clk 0:08:58.2]} 14... f6 {[%clk 0:08:39.1]} 15. Bf4 {[%clk 0:08:22.8]} 15...
Rc8 {[%clk 0:07:28.1]} 16. Nc3 {[%clk 0:08:20.2]} 16... b5 {[%clk 0:07:14.8]}
17. a3 {[%clk 0:07:47.3]} 17... a5 {[%clk 0:07:04.9]} 18. Na2 {[%clk 0:07:31.9]}
18... Qb6 {[%clk 0:05:37.3]} 19. exf6 {[%clk 0:07:22.5]} 19... exf6 {[%clk
0:05:36.7]} 20. Bd6 {[%clk 0:07:21.1]} 20... Rfe8 {[%clk 0:05:36.5]} 21. Bc5
{[%clk 0:07:21.4]} 21... Qc7 {[%clk 0:05:37.7]} 22. b4 {[%clk 0:06:56.3]} 22...
a4 {[%clk 0:05:23.5]} 23. Nc3 {[%clk 0:06:52.1]} 23... Qd7 {[%clk 0:05:14.8]}
24. Rxe8+ {[%clk 0:06:40.3]} 24... Rxe8 {[%clk 0:05:16.7]} 25. Re1 {[%clk
0:06:40.9]} 25... Kf7 {[%clk 0:05:16.5]} 26. Rxe8 {[%clk 0:06:25.4]} 26... Qxe8
{[%clk 0:05:15.4]} 27. Qe3 {[%clk 0:06:26.7]} 27... Qxe3 {[%clk 0:04:41.7]} 28.
fxe3 {[%clk 0:06:27.2]} 28... Bh6 {[%clk 0:04:42.3]} 29. Kf2 {[%clk 0:06:27.4]}
29... Ke6 {[%clk 0:04:43.4]} 30. Kf3 {[%clk 0:06:22.1]} 30... f5 {[%clk
0:04:44.5]} 31. Ne2 {[%clk 0:06:12.1]} 31... g5 {[%clk 0:04:13]} 32. g4 {[%clk
0:05:58.6]} 32... Bg7 {[%clk 0:04:09.7]} 33. Ng3 {[%clk 0:05:54.5]} 33... fxg4+
{[%clk 0:04:05.3]} 34. hxg4 {[%clk 0:05:55.2]} 34... Kf6 {[%clk 0:03:38.5]} 35.
Nf5 {[%clk 0:04:53.4]} 35... Bd7 {[%clk 0:03:34.9]} 36. Be7+ {[%clk 0:04:27.8]}
36... Kg6 {[%clk 0:03:14.4]} 37. e4 {[%clk 0:03:24]} 37... Be6 {[%clk
0:03:07.6]} 38. Nxg7 {[%clk 0:01:58.7]} 38... Kxg7 {[%clk 0:03:07.2]} 39. Bxg5
{[%clk 0:01:58.3]} 39... Kg6 {[%clk 0:02:59.2]} 40. Bd8 {[%clk 0:01:47.4]} 40...
dxe4+ {[%clk 0:02:04.4]} 41. Kxe4 {[%clk 0:01:45.9]} 41... Bxg4 {[%clk
0:02:05.7]} 42. Ke5 {[%clk 0:01:39.4]} 42... Kf7 {[%clk 0:02:04.4]} 43. Kd6
{[%clk 0:01:34.8]} 43... Be2 {[%clk 0:02:00.6]} 44. d5 {[%clk 0:01:25.9]} 44...
Ke8 {[%clk 0:01:47.8]} 45. Kc7 {[%clk 0:01:22.1]} 45... Bg4 {[%clk 0:01:42.5]}
46. Bh4 {[%clk 0:01:17.2]} 46... Bd7 {[%clk 0:01:32.5]} 47. Kd6 {[%clk
0:01:01.1]} 47... Bg4 {[%clk 0:01:27.5]} 48. Kc6 {[%clk 0:00:52.8]} 48... Bd7+
{[%clk 0:01:25]} 49. Kc5 {[%clk 0:00:53.2]} 49... Kf7 {[%clk 0:01:22.3]} 50. Kb6
{[%clk 0:00:49.7]} 50... Ke8 {[%clk 0:01:17.4]} 51. Bg5 {[%clk 0:00:50.4]} 51...
Kf7 {[%clk 0:01:16.1]} 52. Kc7 {[%clk 0:00:44.4]} 52... Ke8 {[%clk 0:01:16.8]}
53. Bh6 {[%clk 0:00:45.2]} 53... Bf5 {[%clk 0:01:15.7]} 54. Be3 {[%clk
0:00:45.4]} 54... Bg4 {[%clk 0:01:12.8]} 55. Bb6 {[%clk 0:00:30.8]} 55... h5
{[%clk 0:01:10.4]} 56. Bf2 {[%clk 0:00:30.6]} 56... Bd7 {[%clk 0:01:08.7]} 57.
Bh4 {[%clk 0:00:29.1]} 57... Bg4 {[%clk 0:01:09.5]} 58. Kc6 {[%clk 0:00:28.2]}
58... Bd7+ {[%clk 0:01:09.6]} 59. Kc5 {[%clk 0:00:28.7]} 59... Kf7 {[%clk
0:01:10.1]} 60. Kd6 {[%clk 0:00:28.1]} 60... Ke8 {[%clk 0:01:11.1]} 61. Ke5
{[%clk 0:00:28.8]} 61... Kf7 {[%clk 0:01:10.7]} 62. Bd8 {[%clk 0:00:28.1]} 62...
Ke8 {[%clk 0:01:09.1]} 63. Bg5 {[%clk 0:00:27.6]} 63... Kf7 {[%clk 0:01:10.2]}
64. Bh4 {[%clk 0:00:28.6]} 64... Ke8 {[%clk 0:01:01.4]} 65. Kf6 {[%clk
0:00:29.4]} 65... Bg4 {[%clk 0:01:01.8]} 66. Ke5 {[%clk 0:00:27.2]} 66... Kd7
{[%clk 0:00:57.7]} 67. Kd4 {[%clk 0:00:27.9]} 67... Be2 {[%clk 0:00:58.6]} 68.
Kc5 {[%clk 0:00:28.3]} 68... Bc4 {[%clk 0:00:57.9]} 69. Kd4 {[%clk 0:00:29.2]}
69... Be2 {[%clk 0:00:58.7]} 70. Kc5 {[%clk 0:00:29.5]} 70... Bc4 {[%clk
0:00:59.7]} 71. Bg3 {[%clk 0:00:30.7]} 71... Be2 {[%clk 0:00:59.9]} 72. Bh4
{[%clk 0:00:31.9]} 1/2-1/2

[Event "GrandPrix_29.05"]
[Site "Chess.com"]
[Date "2020.05.29"]
[Round "3"]
[White "ChessQueen"]
[Black "Igor_Lysyj"]
[Result "0-1"]
[WhiteElo "2201"]
[BlackElo "2360"]
[TimeControl "600+2"]
[EndTime "10:28:32 PDT"]
[Termination "Igor_Lysyj won by resignation"]

1. e4 {[%clk 0:09:58.7]} 1... e5 {[%clk 0:10:00.2]} 2. Nf3 {[%clk 0:09:58.3]}
2... Nc6 {[%clk 0:10:00.8]} 3. Bb5 {[%clk 0:09:56.7]} 3... Nf6 {[%clk
0:10:01.2]} 4. d4 {[%clk 0:09:57.1]} 4... Nxd4 {[%clk 0:09:57.7]} 5. Nxd4 {[%clk
0:09:54.5]} 5... c6 {[%clk 0:09:58.1]} 6. Bc4 {[%clk 0:09:47.7]} 6... exd4
{[%clk 0:09:51.3]} 7. Qxd4 {[%clk 0:09:24.2]} 7... Qb6 {[%clk 0:09:41.2]} 8.
Qxb6 {[%clk 0:09:12.3]} 8... axb6 {[%clk 0:09:41.6]} 9. Bd3 {[%clk 0:09:06.3]}
9... d5 {[%clk 0:09:19.9]} 10. exd5 {[%clk 0:08:48.7]} 10... Nxd5 {[%clk
0:09:20]} 11. c3 {[%clk 0:08:39.2]} 11... Bd6 {[%clk 0:09:09.8]} 12. O-O {[%clk
0:08:03.1]} 12... O-O {[%clk 0:09:09.5]} 13. Rd1 {[%clk 0:06:20.4]} 13... Bg4
{[%clk 0:08:50.5]} 14. f3 {[%clk 0:06:15.3]} 14... Be6 {[%clk 0:08:38.8]} 15.
Nd2 {[%clk 0:05:34.9]} 15... Bc5+ {[%clk 0:07:59.5]} 16. Kh1 {[%clk 0:05:35.4]}
16... Rfd8 {[%clk 0:07:29]} 17. Ne4 {[%clk 0:05:27.7]} 17... Ne3 {[%clk
0:07:08.9]} 18. Bxe3 {[%clk 0:05:22.2]} 18... Bxe3 {[%clk 0:07:09]} 19. Bc2
{[%clk 0:03:41.3]} 19... Rxd1+ {[%clk 0:04:45.8]} 20. Rxd1 {[%clk 0:03:40.5]}
20... f5 {[%clk 0:04:46.2]} 21. Nd6 {[%clk 0:03:41.2]} 21... Rd8 {[%clk
0:02:28.4]} 22. b3 {[%clk 0:03:01.6]} 22... Bf4 {[%clk 0:02:16.5]} 23. Nc4
{[%clk 0:02:58.9]} 23... Rxd1+ {[%clk 0:02:15.6]} 24. Bxd1 {[%clk 0:03:00.8]}
24... b5 {[%clk 0:02:14.3]} 25. Na3 {[%clk 0:01:37.2]} 25... Bc1 {[%clk
0:01:36.2]} 26. Nc2 {[%clk 0:01:28.2]} 26... Bd2 {[%clk 0:01:30.6]} 27. Nd4
{[%clk 0:01:29.3]} 27... Bd7 {[%clk 0:01:30.9]} 28. Ne2 {[%clk 0:01:22.8]} 28...
f4 {[%clk 0:01:27.1]} 29. Bc2 {[%clk 0:01:18]} 29... h6 {[%clk 0:01:25.1]} 30.
Bd3 {[%clk 0:01:04.1]} 30... Kf7 {[%clk 0:01:24.8]} 31. Kg1 {[%clk 0:00:58.5]}
31... Ke7 {[%clk 0:01:22.7]} 32. c4 {[%clk 0:00:47.6]} 32... bxc4 {[%clk
0:01:20]} 33. Bxc4 {[%clk 0:00:44.3]} 33... Kd6 {[%clk 0:01:17.7]} 34. Kf1
{[%clk 0:00:36.8]} 34... Kc5 {[%clk 0:01:13.8]} 35. Bf7 {[%clk 0:00:21.5]} 35...
Bf5 {[%clk 0:00:45.9]} 36. g3 {[%clk 0:00:13.3]} 36... g5 {[%clk 0:00:43.9]} 37.
gxf4 {[%clk 0:00:06.9]} 37... gxf4 {[%clk 0:00:44.6]} 38. a3 {[%clk 0:00:07.9]}
38... Bd3 {[%clk 0:00:44.3]} 39. Kf2 {[%clk 0:00:07.2]} 39... Kd6 {[%clk
0:00:42.7]} 40. h4 {[%clk 0:00:03.8]} 40... Ke5 {[%clk 0:00:42.9]} 41. h5 {[%clk
0:00:04.7]} 41... Bc2 {[%clk 0:00:41.1]} 42. b4 {[%clk 0:00:04.4]} 42... Bd3
{[%clk 0:00:34.1]} 43. Be8 {[%clk 0:00:05.5]} 43... Bc2 {[%clk 0:00:22.9]} 44.
Bf7 {[%clk 0:00:05.8]} 44... b6 {[%clk 0:00:22.8]} 45. Be8 {[%clk 0:00:06.4]}
45... c5 {[%clk 0:00:23.6]} 46. bxc5 {[%clk 0:00:07]} 46... bxc5 {[%clk
0:00:24.8]} 47. a4 {[%clk 0:00:08.6]} 47... c4 {[%clk 0:00:24.8]} 48. Bb5 {[%clk
0:00:08.2]} 48... Kd5 {[%clk 0:00:24.6]} 49. Be8 {[%clk 0:00:06.3]} 49... Kc5
{[%clk 0:00:24.7]} 50. a5 {[%clk 0:00:06.6]} 50... Bxa5 {[%clk 0:00:21]} 51.
Nxf4 {[%clk 0:00:07.2]} 51... Kd4 {[%clk 0:00:21.1]} 52. Ke2 {[%clk 0:00:07.5]}
52... Bf5 {[%clk 0:00:21]} 53. Bg6 {[%clk 0:00:08]} 53... Bd7 {[%clk 0:00:21]}
54. Kd1 {[%clk 0:00:08]} 54... Bc7 {[%clk 0:00:21.6]} 55. Ne2+ {[%clk
0:00:08.3]} 55... Ke3 {[%clk 0:00:22.7]} 56. Be4 {[%clk 0:00:07.7]} 56... Be5
{[%clk 0:00:23.7]} 57. Kc2 {[%clk 0:00:05.2]} 57... Kxe2 {[%clk 0:00:21.7]} 0-1

[Event "GrandPrix_29.05"]
[Site "Chess.com"]
[Date "2020.05.29"]
[Round "3"]
[White "cukus"]
[Black "RaphaeI"]
[Result "1/2-1/2"]
[WhiteElo "2200"]
[BlackElo "2137"]
[TimeControl "600+2"]
[EndTime "10:28:33 PDT"]
[Termination "Game drawn by agreement"]

1. e4 {[%clk 0:10:01.9]} 1... c5 {[%clk 0:09:45.8]} 2. Nf3 {[%clk 0:10:02.6]}
2... Nc6 {[%clk 0:09:45.9]} 3. Nc3 {[%clk 0:10:01.9]} 3... g6 {[%clk 0:09:46.1]}
4. d4 {[%clk 0:10:02.6]} 4... cxd4 {[%clk 0:09:47.5]} 5. Nxd4 {[%clk 0:10:04.5]}
5... Bg7 {[%clk 0:09:49.1]} 6. Be3 {[%clk 0:10:05.8]} 6... Nf6 {[%clk
0:09:50.4]} 7. Bc4 {[%clk 0:10:07]} 7... O-O {[%clk 0:09:50.2]} 8. Bb3 {[%clk
0:10:08.2]} 8... d6 {[%clk 0:09:51.5]} 9. f3 {[%clk 0:10:08.6]} 9... Bd7 {[%clk
0:09:48.2]} 10. Qd2 {[%clk 0:10:09.3]} 10... Nxd4 {[%clk 0:09:38.9]} 11. Bxd4
{[%clk 0:10:09.7]} 11... b5 {[%clk 0:09:40.1]} 12. a4 {[%clk 0:10:10.7]} 12...
b4 {[%clk 0:09:40.6]} 13. Nd5 {[%clk 0:10:11.6]} 13... Nxd5 {[%clk 0:09:41.5]}
14. exd5 {[%clk 0:10:04.1]} 14... Bxd4 {[%clk 0:06:40.5]} 15. Qxd4 {[%clk
0:10:03.8]} 15... a5 {[%clk 0:06:42.4]} 16. h4 {[%clk 0:09:57.5]} 16... Rc8
{[%clk 0:06:37.1]} 17. O-O-O {[%clk 0:08:21.9]} 17... f6 {[%clk 0:03:24.7]} 18.
g4 {[%clk 0:05:56.6]} 18... Qe8 {[%clk 0:03:22.6]} 19. Kb1 {[%clk 0:05:00.5]}
19... Bxa4 {[%clk 0:03:20.7]} 20. Bxa4 {[%clk 0:04:28.1]} 20... Qxa4 {[%clk
0:03:20.5]} 21. b3 {[%clk 0:04:26.2]} 21... Qb5 {[%clk 0:03:18.7]} 22. h5 {[%clk
0:04:20.7]} 22... Qe2 {[%clk 0:01:16.5]} 23. Rc1 {[%clk 0:04:11.2]} 23... Qe5
{[%clk 0:01:09.8]} 24. Qd2 {[%clk 0:03:58.7]} 24... g5 {[%clk 0:00:38.6]} 25.
Rce1 {[%clk 0:03:30.3]} 25... Qc3 {[%clk 0:00:39.2]} 26. Qxc3 {[%clk 0:03:10.2]}
26... Rxc3 {[%clk 0:00:35.8]} 27. Rxe7 {[%clk 0:03:11]} 27... Rxf3 {[%clk
0:00:36.7]} 28. Ra7 {[%clk 0:02:58]} 28... f5 {[%clk 0:00:29.9]} 29. gxf5 {[%clk
0:02:51.9]} 29... R3xf5 {[%clk 0:00:31.8]} 30. h6 {[%clk 0:02:47.6]} 30... Kh8
{[%clk 0:00:15.9]} 31. Rg1 {[%clk 0:01:43.4]} 31... Rg8 {[%clk 0:00:10.1]} 32.
Rg4 {[%clk 0:01:30.2]} 32... Rxd5 {[%clk 0:00:11.1]} 33. Kb2 {[%clk 0:01:02.3]}
33... Re5 {[%clk 0:00:09.9]} 34. Kb1 {[%clk 0:00:36.3]} 34... Re1+ {[%clk
0:00:07]} 35. Kb2 {[%clk 0:00:37.1]} 35... Re5 {[%clk 0:00:07.7]} 36. Kb1 {[%clk
0:00:33.2]} 36... Re6 {[%clk 0:00:06.7]} 37. Rxa5 {[%clk 0:00:21.5]} 37... Rxh6
{[%clk 0:00:07.7]} 38. Raxg5 {[%clk 0:00:22.4]} 38... Rxg5 {[%clk 0:00:06.8]}
39. Rxg5 {[%clk 0:00:24.3]} 39... Rg6 {[%clk 0:00:06.7]} 40. Rb5 {[%clk
0:00:23.8]} 40... Rg4 {[%clk 0:00:05.3]} 41. Kb2 {[%clk 0:00:17.9]} 41... Kg7
{[%clk 0:00:05]} 42. c4 {[%clk 0:00:19.1]} 42... bxc3+ {[%clk 0:00:04.5]} 43.
Kxc3 {[%clk 0:00:20.5]} 43... Kf6 {[%clk 0:00:05.3]} 44. Rd5 {[%clk 0:00:18.7]}
44... Ke6 {[%clk 0:00:04.6]} 45. Rh5 {[%clk 0:00:19.8]} 45... Rg7 {[%clk
0:00:05]} 46. Kc4 {[%clk 0:00:18.2]} 46... Rc7+ {[%clk 0:00:05.8]} 47. Kb5
{[%clk 0:00:13.3]} 47... Rb7+ {[%clk 0:00:07]} 48. Kc4 {[%clk 0:00:10.4]} 48...
d5+ {[%clk 0:00:07.6]} 49. Kc5 {[%clk 0:00:04.3]} 49... Rxb3 {[%clk 0:00:07.5]}
50. Rxh7 {[%clk 0:00:04.8]} 50... Rd3 {[%clk 0:00:05.1]} 51. Rh6+ {[%clk
0:00:03.2]} 51... Ke5 {[%clk 0:00:05.8]} 52. Rh5+ {[%clk 0:00:04]} 52... Ke4
{[%clk 0:00:06]} 53. Rh4+ {[%clk 0:00:05.5]} 53... Ke5 {[%clk 0:00:05.6]} 54.
Rh5+ {[%clk 0:00:06.8]} 54... Ke4 {[%clk 0:00:05.7]} 55. Rh4+ {[%clk 0:00:08.3]}
55... Ke5 {[%clk 0:00:05.4]} 1/2-1/2